[Event "FIDE Women World Blitz 2021"]
[Site "Warsaw"]
[Date "2021.12.30"]
[Round "14.37"]
[White "Parol, Pola"]
[Black "Badelka, Olga"]
[Result "0-1"]
[ECO "C79"]
[WhiteElo "1823"]
[BlackElo "2188"]
[Annotator "NA"]
[PlyCount "76"]
[EventDate "2021.12.29"]
[EventType "swiss"]
[EventCountry "POL"]
[Tiebreak "Cut1 Buchholz"]
[SourceTitle "playchess.com"]
[Source "ChessBase"]
[SourceQuality "1"]
[TimeControl "180+2"]

1. e4 {[%emt 0:00:00]} e5 {[%emt 0:00:01]} 2. Nf3 Nc6 3. Bb5 {[%emt 0:00:02]}
Nf6 {[%emt 0:00:02]} 4. d3 {[%emt 0:00:03]} d6 {[%emt 0:00:01]} 5. O-O {
[%emt 0:00:04]} a6 {[%emt 0:00:00]} 6. Ba4 {[%emt 0:00:01]} b5 {[%emt 0:00:01]}
7. Bb3 {[%emt 0:00:01]} Na5 {[%emt 0:00:01]} 8. c3 {[%emt 0:00:11]} Nxb3 {
[%emt 0:00:01]} 9. Qxb3 {[%emt 0:00:04]} Be7 {[%emt 0:00:02]} 10. Re1 {[%emt 0:
00:03]} O-O {[%emt 0:00:03]} 11. h3 {[%emt 0:00:02]} Be6 {[%emt 0:00:04]} 12.
Qc2 {[%emt 0:00:01]} h6 {[%emt 0:00:01]} 13. Nbd2 {[%emt 0:00:05]} c5 {[%emt 0:
00:03]} 14. a4 {[%emt 0:00:03]} b4 {[%emt 0:00:05]} 15. c4 {[%emt 0:00:03]} Nh7
{[%emt 0:00:08]} 16. Nf1 {[%emt 0:00:07]} f5 {[%emt 0:00:01]} 17. exf5 {
[%emt 0:00:31]} Bxf5 {[%emt 0:00:01]} 18. N3d2 {[%emt 0:00:01]} Ng5 {[%emt 0:
00:07]} 19. Re3 {[%emt 0:00:20]} Ne6 {[%emt 0:00:03]} 20. Ng3 {[%emt 0:00:16]}
Nd4 {[%emt 0:00:09]} 21. Qd1 {[%emt 0:00:00]} Bg5 {[%emt 0:00:10]} 22. Re1 {
[%emt 0:00:01]} Bxd3 {[%emt 0:00:06]} 23. Nde4 {[%emt 0:00:56]} Bc2 {[%emt 0:
00:02]} 24. Qg4 {[%emt 0:00:12]} Bxc1 {[%emt 0:00:09]} 25. Raxc1 {[%emt 0:00:
02]} Rf4 {[%emt 0:00:08]} 26. Qg6 {[%emt 0:00:07]} Qf8 {[%emt 0:01:35]} 27. Nh5
{[%emt 0:00:24]} Bxe4 {[%emt 0:00:08]} 28. Rxe4 {[%emt 0:00:02]} Rxf2 {[%emt 0:
00:09]} 29. Rg4 {[%emt 0:00:05]} Rf7 {[%emt 0:00:13]} 30. Kh2 {[%emt 0:00:07]}
Kh8 {[%emt 0:00:03]} 31. Rf1 {[%emt 0:00:06]} Rxf1 {[%emt 0:00:03]} 32. Nxg7 {
[%emt 0:00:01]} Rf6 {[%emt 0:00:02]} 33. Qh5 {[%emt 0:00:03]} Ra7 {[%emt 0:00:
11]} 34. Rg6 {[%emt 0:00:03]} Rxg6 {[%emt 0:00:01]} 35. Qxg6 {[%emt 0:00:01]}
Qxg7 {[%emt 0:00:02]} 36. Qe8+ {[%emt 0:00:02]} Kh7 {[%emt 0:00:01]} 37. Qh5 {
[%emt 0:00:02]} Rf7 {[%emt 0:00:02]} 38. Qd1 {[%emt 0:00:02]} e4 {[%emt 0:00:
01]} 0-1

[Event "FIDE Women World Blitz 2021"]
[Site "Warsaw"]
[Date "2021.12.30"]
[Round "14.38"]
[White "Strutinskaia, Galina"]
[Black "Kurmangaliyeva, Liya"]
[Result "0-1"]
[ECO "E51"]
[WhiteElo "2188"]
[BlackElo "2222"]
[Annotator "NA"]
[PlyCount "128"]
[EventDate "2021.12.29"]
[EventType "swiss"]
[EventCountry "POL"]
[Tiebreak "Cut1 Buchholz"]
[SourceTitle "playchess.com"]
[Source "ChessBase"]
[SourceQuality "1"]
[TimeControl "180+2"]

1. d4 {[%emt 0:00:00]} Nf6 {[%emt 0:00:01]} 2. c4 {[%emt 0:00:01]} e6 {[%emt 0:
00:02]} 3. Nc3 {[%emt 0:00:01]} Bb4 {[%emt 0:00:01]} 4. Bd2 {[%emt 0:00:00]}
O-O {[%emt 0:00:05]} 5. e3 {[%emt 0:00:02]} d5 {[%emt 0:00:02]} 6. Nf3 {
[%emt 0:00:04]} b6 {[%emt 0:00:09]} 7. cxd5 {[%emt 0:00:03]} exd5 {[%emt 0:00:
02]} 8. Bd3 {[%emt 0:00:01]} Ba6 {[%emt 0:00:29]} 9. Bxa6 {[%emt 0:00:09]} Nxa6
{[%emt 0:00:01]} 10. O-O {[%emt 0:00:02]} c6 {[%emt 0:00:18]} 11. Ne5 {[%emt 0:
00:03]} Nb8 {[%emt 0:00:21]} 12. Qa4 {[%emt 0:00:08]} Bxc3 {[%emt 0:00:09]} 13.
Bxc3 {[%emt 0:00:05]} Qc7 {[%emt 0:00:08]} 14. Rfc1 {[%emt 0:00:06]} Rc8 {
[%emt 0:00:04]} 15. b4 {[%emt 0:00:02]} Nfd7 {[%emt 0:00:07]} 16. Nd3 {[%emt 0:
00:02]} Nf6 {[%emt 0:00:07]} 17. Be1 {[%emt 0:00:02]} Nbd7 {[%emt 0:00:06]} 18.
Rc2 {[%emt 0:00:08]} b5 {[%emt 0:00:22]} 19. Qb3 {[%emt 0:00:09]} Nb6 {[%emt 0:
00:03]} 20. a4 {[%emt 0:00:12]} Nxa4 {[%emt 0:00:06]} 21. Ne5 {[%emt 0:00:01]}
Qb7 {[%emt 0:00:07]} 22. Rac1 {[%emt 0:00:03]} Nb6 {[%emt 0:00:04]} 23. Nxc6 {
[%emt 0:00:08]} Nc4 {[%emt 0:00:04]} 24. Ne5 {[%emt 0:00:06]} Ne4 {[%emt 0:00:
05]} 25. Nd3 {[%emt 0:00:06]} Qb6 {[%emt 0:00:10]} 26. Re2 {[%emt 0:00:07]}
Ned6 {[%emt 0:00:03]} 27. f3 {[%emt 0:00:05]} a5 {[%emt 0:00:03]} 28. bxa5 {
[%emt 0:00:03]} Nxa5 {[%emt 0:00:01]} 29. Qxd5 {[%emt 0:00:07]} Rxc1 {[%emt 0:
00:07]} 30. Nxc1 {[%emt 0:00:01]} Rc8 {[%emt 0:00:01]} 31. Nd3 {[%emt 0:00:02]}
Nac4 {[%emt 0:00:03]} 32. Nc5 {[%emt 0:00:08]} b4 {[%emt 0:00:03]} 33. Nb3 {
[%emt 0:00:06]} Qa6 {[%emt 0:00:03]} 34. Bxb4 {[%emt 0:00:07]} Nb6 {[%emt 0:00:
06]} 35. Qxd6 {[%emt 0:00:09]} Qxe2 {[%emt 0:00:02]} 36. Nc5 {[%emt 0:00:33]}
Qxe3+ {[%emt 0:00:04]} 37. Kf1 {[%emt 0:00:01]} Re8 {[%emt 0:00:03]} 38. Ne4 {
[%emt 0:00:07]} Nc4 {[%emt 0:00:02]} 39. Qc6 {[%emt 0:00:04]} Qc1+ {[%emt 0:00:
06]} 40. Ke2 {[%emt 0:00:08]} Qc2+ {[%emt 0:00:02]} 41. Ke1 {[%emt 0:00:08]}
Rb8 {[%emt 0:00:11]} 42. Qc5 {[%emt 0:00:06]} Qb1+ {[%emt 0:00:01]} 43. Ke2 {
[%emt 0:00:02]} Qxb4 {[%emt 0:00:16]} 44. Qg5 {[%emt 0:00:16]} Qb6 {[%emt 0:00:
00]} 45. Qd5 {[%emt 0:00:07]} Nb2 {[%emt 0:00:00]} 46. Nc5 {[%emt 0:00:05]} h6
{[%emt 0:00:00]} 47. h4 {[%emt 0:00:01]} Qb5+ {[%emt 0:00:00]} 48. Kf2 {
[%emt 0:00:00]} Nd3+ {[%emt 0:00:00]} 49. Kg3 {[%emt 0:00:01]} Nxc5 {[%emt 0:
00:01]} 50. dxc5 {[%emt 0:00:01]} Rc8 {[%emt 0:00:01]} 51. Qe4 {[%emt 0:00:03]}
Qxc5 {[%emt 0:00:01]} 52. Kh3 {[%emt 0:00:01]} Qc6 {[%emt 0:00:03]} 53. Qd4 {
[%emt 0:00:02]} Qe6+ {[%emt 0:00:01]} 54. g4 {[%emt 0:00:01]} Qe2 {[%emt 0:00:
05]} 55. Kg3 {[%emt 0:00:02]} Re8 {[%emt 0:00:01]} 56. Qd7 {[%emt 0:00:03]}
Qe1+ {[%emt 0:00:01]} 57. Kh3 {[%emt 0:00:02]} Qe3 {[%emt 0:00:03]} 58. Kg3 {
[%emt 0:00:01]} Qe5+ {[%emt 0:00:01]} 59. Kh3 Qe6 60. Qb5 {[%emt 0:00:03]} g6 {
[%emt 0:00:02]} 61. h5 {[%emt 0:00:01]} Qe5 {[%emt 0:00:02]} 62. Qc6 {[%emt 0:
00:05]} gxh5 {[%emt 0:00:01]} 63. Qxh6 {[%emt 0:00:02]} hxg4+ {[%emt 0:00:01]}
64. fxg4 {[%emt 0:00:02]} Qe3+ {[%emt 0:00:01]} 0-1

[Event "FIDE Women World Blitz 2021"]
[Site "Warsaw"]
[Date "2021.12.30"]
[Round "14.39"]
[White "Beydullayeva, Govhar"]
[Black "Wikar, Martyna"]
[Result "1-0"]
[ECO "A55"]
[WhiteElo "2278"]
[BlackElo "1899"]
[Annotator "NA"]
[PlyCount "145"]
[EventDate "2021.12.29"]
[EventType "swiss"]
[EventCountry "POL"]
[Tiebreak "Cut1 Buchholz"]
[SourceTitle "playchess.com"]
[Source "ChessBase"]
[SourceQuality "1"]
[TimeControl "180+2"]

1. Nf3 {[%emt 0:00:01]} d6 {[%emt 0:00:01]} 2. d4 {[%emt 0:00:01]} Nf6 {
[%emt 0:00:03]} 3. c4 {[%emt 0:00:04]} Nbd7 {[%emt 0:00:05]} 4. Nc3 {[%emt 0:
00:01]} e5 {[%emt 0:00:01]} 5. e4 {[%emt 0:00:01]} Be7 {[%emt 0:00:02]} 6. Be2
{[%emt 0:00:13]} O-O {[%emt 0:00:02]} 7. O-O {[%emt 0:00:01]} c6 {[%emt 0:00:
01]} 8. h3 {[%emt 0:00:12]} Re8 {[%emt 0:00:01]} 9. Be3 {[%emt 0:00:02]} Bf8 {
[%emt 0:00:03]} 10. Qc2 {[%emt 0:00:04]} Qc7 {[%emt 0:00:03]} 11. Rad1 {
[%emt 0:00:05]} a6 {[%emt 0:00:05]} 12. a4 {[%emt 0:00:10]} Rb8 {[%emt 0:00:05]
} 13. Rd2 {[%emt 0:00:27]} g6 {[%emt 0:00:09]} 14. Rfd1 {[%emt 0:00:03]} Bg7 {
[%emt 0:00:08]} 15. dxe5 {[%emt 0:00:20]} dxe5 {[%emt 0:00:06]} 16. c5 {
[%emt 0:00:04]} Nf8 {[%emt 0:00:13]} 17. Rd6 {[%emt 0:00:10]} N6d7 {[%emt 0:00:
48]} 18. b4 {[%emt 0:00:35]} Ne6 {[%emt 0:00:06]} 19. Qd2 {[%emt 0:00:03]} Re7
{[%emt 0:00:21]} 20. Bc4 {[%emt 0:00:07]} Ndf8 {[%emt 0:00:04]} 21. a5 {
[%emt 0:00:18]} Bd7 {[%emt 0:00:17]} 22. Na4 {[%emt 0:00:06]} Be8 {[%emt 0:00:
12]} 23. Nb6 {[%emt 0:00:02]} Kh8 {[%emt 0:00:16]} 24. Qa2 {[%emt 0:00:20]} Rd8
{[%emt 0:00:04]} 25. Qd2 {[%emt 0:00:04]} Rb8 {[%emt 0:00:05]} 26. g3 {[%emt 0:
00:03]} f5 {[%emt 0:00:11]} 27. exf5 {[%emt 0:00:07]} gxf5 {[%emt 0:00:01]} 28.
Ng5 {[%emt 0:00:00]} Nd4 {[%emt 0:00:10]} 29. Bxd4 {[%emt 0:00:05]} exd4 {
[%emt 0:00:01]} 30. Nf3 {[%emt 0:00:04]} Ng6 {[%emt 0:00:04]} 31. Nxd4 {
[%emt 0:00:02]} Ne5 {[%emt 0:00:03]} 32. Be2 {[%emt 0:00:05]} Bg6 {[%emt 0:00:
03]} 33. Kh2 {[%emt 0:00:03]} Rf8 {[%emt 0:00:01]} 34. f4 {[%emt 0:00:01]} Nf7
{[%emt 0:00:01]} 35. Re6 {[%emt 0:00:02]} Qd8 {[%emt 0:00:05]} 36. Rxe7 Qxe7 {
[%emt 0:00:01]} 37. Bf3 {[%emt 0:00:04]} Rd8 {[%emt 0:00:01]} 38. Qf2 {[%emt 0:
00:03]} Bf6 {[%emt 0:00:05]} 39. Nc2 {[%emt 0:00:02]} Rxd1 {[%emt 0:00:02]} 40.
Bxd1 {[%emt 0:00:01]} Qe4 {[%emt 0:00:02]} 41. Bf3 {[%emt 0:00:02]} Qd3 {
[%emt 0:00:02]} 42. Qe2 {[%emt 0:00:02]} Qd8 {[%emt 0:00:03]} 43. Nc4 {[%emt 0:
00:02]} Kg7 {[%emt 0:00:01]} 44. Ne1 {[%emt 0:00:03]} Qd7 {[%emt 0:00:05]} 45.
Nd3 {[%emt 0:00:01]} Qd4 {[%emt 0:00:01]} 46. Nce5 {[%emt 0:00:02]} Bxe5 {
[%emt 0:00:04]} 47. fxe5 {[%emt 0:00:01]} Nd8 {[%emt 0:00:01]} 48. e6 {[%emt 0:
00:01]} Nxe6 {[%emt 0:00:04]} 49. Ne5 {[%emt 0:00:06]} Ng5 {[%emt 0:00:02]} 50.
Bg2 {[%emt 0:00:02]} Qxb4 {[%emt 0:00:02]} 51. Nd7 {[%emt 0:00:02]} Ne4 {
[%emt 0:00:02]} 52. Qd3 {[%emt 0:00:03]} Nxc5 {[%emt 0:00:03]} 53. Nxc5 Qxc5 {
[%emt 0:00:01]} 54. Qd7+ {[%emt 0:00:02]} Kf6 {[%emt 0:00:03]} 55. Qxb7 {
[%emt 0:00:01]} Qb5 {[%emt 0:00:02]} 56. Qxc6+ {[%emt 0:00:02]} Qxc6 {[%emt 0:
00:02]} 57. Bxc6 {[%emt 0:00:01]} f4 {[%emt 0:00:01]} 58. gxf4 {[%emt 0:00:01]}
Bd3 {[%emt 0:00:01]} 59. Kg3 {[%emt 0:00:02]} Kf5 {[%emt 0:00:01]} 60. Kf3 {
[%emt 0:00:01]} h5 {[%emt 0:00:01]} 61. h4 {[%emt 0:00:01]} Bc4 {[%emt 0:00:02]
} 62. Bd7+ {[%emt 0:00:02]} Kf6 {[%emt 0:00:01]} 63. Ke4 {[%emt 0:00:02]} Be2 {
[%emt 0:00:02]} 64. Bc8 {[%emt 0:00:05]} Bf1 {[%emt 0:00:01]} 65. Kd5 {[%emt 0:
00:02]} Ke7 {[%emt 0:00:04]} 66. Kc6 {[%emt 0:00:04]} Kd8 {[%emt 0:00:00]} 67.
Bf5 {[%emt 0:00:02]} Bb5+ {[%emt 0:00:05]} 68. Kb6 {[%emt 0:00:01]} Be2 {
[%emt 0:00:01]} 69. Be6 {[%emt 0:00:02]} Ke7 {[%emt 0:00:01]} 70. Bc8 {[%emt 0:
00:01]} Kf6 {[%emt 0:00:01]} 71. Bxa6 {[%emt 0:00:01]} Bg4 {[%emt 0:00:01]} 72.
Bb7 {[%emt 0:00:01]} Be6 {[%emt 0:00:02]} 73. a6 {[%emt 0:00:01]} 1-0

[Event "FIDE Women World Blitz 2021"]
[Site "Warsaw"]
[Date "2021.12.30"]
[Round "15.1"]
[White "Lagno, Kateryna"]
[Black "Assaubayeva, Bibisara"]
[Result "1-0"]
[ECO "B92"]
[WhiteElo "2550"]
[BlackElo "2400"]
[Annotator "ChessBase"]
[PlyCount "141"]
[EventDate "2021.12.29"]
[EventType "swiss"]
[EventCountry "POL"]
[Tiebreak "Cut1 Buchholz"]
[SourceTitle "playchess.com"]
[Source "ChessBase"]
[SourceQuality "1"]
[TimeControl "180+2"]

1. e4 {[%emt 0:00:01]} c5 {[%emt 0:00:00]} 2. Nf3 {[%emt 0:00:01]} d6 {[%emt 0:
00:00]} 3. d4 {[%emt 0:00:01]} cxd4 {[%emt 0:00:01]} 4. Nxd4 {[%emt 0:00:01]}
Nf6 {[%emt 0:00:02]} 5. Nc3 {[%emt 0:00:01]} a6 {[%emt 0:00:00]} 6. Be2 {
[%emt 0:00:02]} e5 {[%emt 0:00:01]} 7. Nb3 {[%emt 0:00:01]} Be7 {[%emt 0:00:02]
} 8. Be3 {[%emt 0:00:02]} O-O {[%emt 0:00:02]} 9. g4 {[%emt 0:00:01]} Be6 {
[%emt 0:00:02]} 10. g5 {[%emt 0:00:02]} Nfd7 {[%emt 0:00:01]} 11. Qd2 {[%emt 0:
00:10]} b5 {[%emt 0:00:07]} 12. Nd5 {[%emt 0:00:17]} a5 {[%emt 0:00:27]} 13.
Nxe7+ {[%emt 0:00:18]} Qxe7 {[%emt 0:00:01]} 14. Rd1 {[%emt 0:00:09]} a4 {
[%emt 0:00:05]} 15. Nc1 {[%emt 0:00:01]} Nc5 {[%emt 0:00:21]} 16. Qxd6 {
[%emt 0:00:10]} Qxd6 {[%emt 0:00:07]} 17. Rxd6 {[%emt 0:00:02]} Nxe4 {[%emt 0:
00:04]} 18. Rb6 {[%emt 0:00:02]} a3 {[%emt 0:00:02]} 19. bxa3 {[%emt 0:00:13]}
Nd7 {[%emt 0:00:04]} 20. Rxb5 {[%emt 0:00:06]} Nc3 {[%emt 0:00:05]} 21. Rb4 {
[%emt 0:00:10]} Rxa3 {[%emt 0:00:06]} 22. Bc4 {[%emt 0:00:08]} Nxa2 {[%emt 0:
00:18]} 23. Nxa2 {[%emt 0:00:32]} Bxc4 {[%emt 0:00:01]} 24. Rxc4 {[%emt 0:00:
01]} Rxa2 {[%emt 0:00:01]} 25. O-O {[%emt 0:00:04]} f6 {[%emt 0:00:02]} 26. Rd1
{[%emt 0:00:03]} Nb8 {[%emt 0:00:13]} 27. gxf6 {[%emt 0:00:05]} gxf6 {[%emt 0:
00:02]} 28. Bh6 {[%emt 0:00:05]} Re8 {[%emt 0:00:04]} 29. Rc7 {[%emt 0:00:03]}
Ra6 {[%emt 0:00:13]} 30. Rd3 {[%emt 0:00:01]} f5 {[%emt 0:00:06]} 31. Rg3+ {
[%emt 0:00:18]} Rg6 {[%emt 0:00:01]} 32. Rxg6+ {[%emt 0:00:06]} hxg6 {[%emt 0:
00:01]} 33. Rg7+ {[%emt 0:00:01]} Kh8 {[%emt 0:00:01]} 34. Rxg6 {[%emt 0:00:01]
} Rc8 {[%emt 0:00:10]} 35. Bg5 {[%emt 0:00:08]} Rxc2 {[%emt 0:00:18]} 36. Rf6 {
[%emt 0:00:15]} Kg7 {[%emt 0:00:12]} 37. Rxf5 {[%emt 0:00:03]} Nd7 {[%emt 0:00:
02]} 38. h4 {[%emt 0:00:03]} Kg6 {[%emt 0:00:03]} 39. Rf3 {[%emt 0:00:01]} e4 {
[%emt 0:00:10]} 40. Rf4 {[%emt 0:00:01]} Nc5 {[%emt 0:00:04]} 41. Rf6+ {
[%emt 0:00:02]} Kh5 {[%emt 0:00:05]} 42. Rc6 {[%emt 0:00:01]} Kg4 {[%emt 0:00:
05]} 43. Be3 {[%emt 0:00:07]} Kxh4 {[%emt 0:00:12]} 44. Rxc5 {[%emt 0:00:02]}
Ra2 {[%emt 0:00:01]} 45. Kg2 {[%emt 0:00:02]} Kg4 {[%emt 0:00:01]} 46. Rg5+ {
[%emt 0:00:02]} Kh4 {[%emt 0:00:01]} 47. Rg8 {[%emt 0:00:02]} Rc2 {[%emt 0:00:
02]} 48. Kf1 {[%emt 0:00:02]} Kh5 {[%emt 0:00:04]} 49. Ke1 {[%emt 0:00:02]} Kh4
{[%emt 0:00:01]} 50. Kd1 {[%emt 0:00:01]} Ra2 {[%emt 0:00:01]} 51. Ke1 {
[%emt 0:00:06]} Rc2 {[%emt 0:00:02]} 52. Kf1 {[%emt 0:00:00]} Kh5 {[%emt 0:00:
01]} 53. Kg2 {[%emt 0:00:01]} Kh4 {[%emt 0:00:02]} 54. Rf8 {[%emt 0:00:01]} Kh5
{[%emt 0:00:03]} 55. Kg3 {[%emt 0:00:02]} Ra2 {[%emt 0:00:02]} 56. Kf4 {
[%emt 0:00:01]} Ra4 {[%emt 0:00:02]} 57. Re8 {[%emt 0:00:02]} Kg6 {[%emt 0:00:
01]} 58. Rxe4 {[%emt 0:00:01]} Ra5 {[%emt 0:00:01]} 59. Re6+ {[%emt 0:00:02]}
Kf7 {[%emt 0:00:00]} 60. Rb6 {[%emt 0:00:01]} Ra4+ {[%emt 0:00:02]} 61. Kg5 {
[%emt 0:00:03]} Ra5+ {[%emt 0:00:01]} 62. Kg4 {[%emt 0:00:01]} Ra4+ {[%emt 0:
00:01]} 63. f4 {[%emt 0:00:01]} Ra3 {[%emt 0:00:00]} 64. Bd4 {[%emt 0:00:01]}
Ra4 {[%emt 0:00:01]} 65. Be5 {[%emt 0:00:01]} Rc4 {[%emt 0:00:01]} 66. Kf5 {
[%emt 0:00:01]} Rc1 {[%emt 0:00:02]} 67. Rb7+ {[%emt 0:00:01]} Kf8 {[%emt 0:00:
01]} 68. Kg6 {[%emt 0:00:02]} Rg1+ {[%emt 0:00:02]} 69. Kf6 {[%emt 0:00:01]}
Ke8 {[%emt 0:00:01]} 70. Rb8+ {[%emt 0:00:01]} Kd7 {[%emt 0:00:01]} 71. f5 {
[%emt 0:00:02]} 1-0

[Event "FIDE Women World Blitz 2021"]
[Site "Warsaw"]
[Date "2021.12.30"]
[Round "15.1"]
[White "Movsesian, Julia"]
[Black "Sliwicka, Alicja"]
[Result "1/2-1/2"]
[ECO "B53"]
[WhiteElo "2322"]
[BlackElo "2303"]
[Annotator "NA"]
[PlyCount "112"]
[EventDate "2021.12.29"]
[EventType "swiss"]
[EventCountry "POL"]
[Tiebreak "Cut1 Buchholz"]
[SourceTitle "playchess.com"]
[Source "ChessBase"]
[SourceQuality "1"]
[TimeControl "180+2"]

1. e4 {[%emt 0:00:01]} c5 {[%emt 0:00:01]} 2. Nf3 {[%emt 0:00:01]} d6 {[%emt 0:
00:04]} 3. Nc3 {[%emt 0:00:01]} Nc6 {[%emt 0:00:07]} 4. Bb5 {[%emt 0:00:02]} g6
{[%emt 0:00:03]} 5. d4 {[%emt 0:00:06]} cxd4 {[%emt 0:00:07]} 6. Qxd4 {[%emt 0:
00:02]} Nf6 {[%emt 0:01:23]} 7. Bxc6+ {[%emt 0:00:01]} bxc6 {[%emt 0:00:01]} 8.
e5 {[%emt 0:00:01]} Nh5 {[%emt 0:00:10]} 9. exd6 {[%emt 0:00:11]} Bg7 {[%emt 0:
00:01]} 10. Qa4 {[%emt 0:00:20]} Qxd6 {[%emt 0:00:08]} 11. O-O {[%emt 0:00:02]}
O-O {[%emt 0:00:03]} 12. Be3 {[%emt 0:00:02]} Bb7 {[%emt 0:00:23]} 13. Rad1 {
[%emt 0:00:18]} Qc7 {[%emt 0:00:01]} 14. Bc5 {[%emt 0:00:05]} a5 {[%emt 0:00:
06]} 15. Rfe1 {[%emt 0:00:06]} Rfe8 {[%emt 0:00:01]} 16. Qh4 {[%emt 0:00:03]}
Bf6 {[%emt 0:00:04]} 17. Qe4 {[%emt 0:00:12]} Bc8 {[%emt 0:00:03]} 18. Nb5 {
[%emt 0:00:11]} Qb8 {[%emt 0:00:22]} 19. Nd6 {[%emt 0:00:07]} Rf8 {[%emt 0:00:
02]} 20. Nxc8 {[%emt 0:00:12]} Qxc8 {[%emt 0:00:02]} 21. g4 {[%emt 0:00:02]}
Ng7 {[%emt 0:00:03]} 22. c3 {[%emt 0:00:04]} Ne6 {[%emt 0:00:05]} 23. Ba3 {
[%emt 0:00:04]} Qc7 {[%emt 0:00:02]} 24. h4 {[%emt 0:00:06]} h6 {[%emt 0:00:03]
} 25. c4 {[%emt 0:00:12]} Rad8 {[%emt 0:00:02]} 26. b3 {[%emt 0:00:01]} c5 {
[%emt 0:00:04]} 27. Bc1 {[%emt 0:00:02]} Bg7 {[%emt 0:00:04]} 28. Be3 {[%emt 0:
00:06]} Qc8 {[%emt 0:00:06]} 29. Rd5 {[%emt 0:00:02]} Nd4 {[%emt 0:00:04]} 30.
Nxd4 {[%emt 0:00:06]} cxd4 {[%emt 0:00:02]} 31. Bxd4 {[%emt 0:00:02]} Rxd5 {
[%emt 0:00:03]} 32. cxd5 {[%emt 0:00:01]} Rd8 {[%emt 0:00:04]} 33. Bxg7 {
[%emt 0:00:06]} Kxg7 {[%emt 0:00:01]} 34. Rd1 {[%emt 0:00:01]} Rd7 {[%emt 0:00:
02]} 35. Kg2 {[%emt 0:00:04]} Qc5 {[%emt 0:00:01]} 36. Kg3 {[%emt 0:00:03]}
Qd6+ {[%emt 0:00:05]} 37. Kg2 {[%emt 0:00:01]} Qc7 {[%emt 0:00:03]} 38. Qd4+ {
[%emt 0:00:04]} Kh7 {[%emt 0:00:01]} 39. Qe4 {[%emt 0:00:03]} Kg7 {[%emt 0:00:
01]} 40. Qe3 {[%emt 0:00:03]} Kh7 {[%emt 0:00:03]} 41. f3 {[%emt 0:00:05]} Qc2+
{[%emt 0:00:02]} 42. Rd2 {[%emt 0:00:00]} Qc7 {[%emt 0:00:02]} 43. Qd4 {
[%emt 0:00:04]} Qb7 {[%emt 0:00:03]} 44. Rd3 {[%emt 0:00:02]} Qb5 {[%emt 0:00:
03]} 45. Qe4 {[%emt 0:00:03]} Qc5 {[%emt 0:00:01]} 46. Qc4 {[%emt 0:00:02]} Qd6
{[%emt 0:00:02]} 47. Qe4 {[%emt 0:00:08]} Qf6 {[%emt 0:00:01]} 48. h5 {[%emt 0:
00:04]} Qb2+ {[%emt 0:00:02]} 49. Kg3 {[%emt 0:00:01]} Rc7 {[%emt 0:00:02]} 50.
hxg6+ {[%emt 0:00:02]} fxg6 {[%emt 0:00:01]} 51. d6 {[%emt 0:00:03]} exd6 {
[%emt 0:00:04]} 52. Rxd6 {[%emt 0:00:01]} Rg7 {[%emt 0:00:02]} 53. Qd3 {
[%emt 0:00:12]} Qa1 {[%emt 0:00:04]} 54. Rd7 {[%emt 0:00:04]} Qg1+ {[%emt 0:00:
02]} 55. Kh3 {[%emt 0:00:05]} Qh1+ {[%emt 0:00:03]} 56. Kg3 {[%emt 0:00:00]}
Qg1+ {[%emt 0:00:10]} 1/2-1/2

[Event "FIDE Women World Blitz 2021"]
[Site "Warsaw"]
[Date "2021.12.30"]
[Round "15.2"]
[White "Gunina, Valentina"]
[Black "Shuvalova, Polina"]
[Result "1/2-1/2"]
[ECO "D32"]
[WhiteElo "2480"]
[BlackElo "2515"]
[Annotator "ChessBase"]
[PlyCount "115"]
[EventDate "2021.12.29"]
[EventType "swiss"]
[EventCountry "POL"]
[Tiebreak "Cut1 Buchholz"]
[SourceTitle "playchess.com"]
[Source "ChessBase"]
[SourceQuality "1"]
[TimeControl "180+2"]

1. d4 {[%emt 0:00:01]} Nf6 {[%emt 0:00:00]} 2. c4 {[%emt 0:00:02]} e6 {[%emt 0:
00:01]} 3. Nf3 {[%emt 0:00:01]} d5 {[%emt 0:00:01]} 4. Nc3 {[%emt 0:00:01]} c5
{[%emt 0:00:01]} 5. cxd5 {[%emt 0:00:02]} exd5 {[%emt 0:00:01]} 6. Bg5 {
[%emt 0:00:05]} Be6 {[%emt 0:00:01]} 7. e3 {[%emt 0:00:07]} c4 {[%emt 0:00:03]}
8. Be2 {[%emt 0:00:06]} Nc6 {[%emt 0:00:01]} 9. O-O {[%emt 0:00:02]} Bb4 {
[%emt 0:00:02]} 10. e4 {[%emt 0:00:09]} Bxc3 {[%emt 0:00:05]} 11. bxc3 {
[%emt 0:00:06]} dxe4 {[%emt 0:00:13]} 12. Nd2 {[%emt 0:00:01]} h6 {[%emt 0:00:
18]} 13. Bxf6 {[%emt 0:00:12]} Qxf6 {[%emt 0:00:03]} 14. Nxe4 {[%emt 0:00:02]}
Qe7 {[%emt 0:00:03]} 15. Nc5 {[%emt 0:00:04]} O-O {[%emt 0:00:21]} 16. Re1 {
[%emt 0:00:02]} Rad8 {[%emt 0:00:43]} 17. Nxe6 {[%emt 0:00:25]} Qxe6 {[%emt 0:
00:11]} 18. Qa4 {[%emt 0:00:18]} a6 {[%emt 0:00:15]} 19. Qxc4 {[%emt 0:00:04]}
Qxc4 {[%emt 0:00:16]} 20. Bxc4 {[%emt 0:00:01]} Na5 {[%emt 0:00:01]} 21. Bb3 {
[%emt 0:00:11]} Rc8 {[%emt 0:00:01]} 22. Rac1 {[%emt 0:00:06]} b5 {[%emt 0:00:
03]} 23. Re7 {[%emt 0:00:05]} Nxb3 {[%emt 0:00:15]} 24. axb3 {[%emt 0:00:01]}
Rfd8 {[%emt 0:00:00]} 25. Re4 {[%emt 0:00:17]} f5 {[%emt 0:00:07]} 26. Rf4 {
[%emt 0:00:04]} Rd5 {[%emt 0:00:01]} 27. Kf1 {[%emt 0:00:10]} g5 {[%emt 0:00:
05]} 28. Rf3 {[%emt 0:00:01]} Rxd4 {[%emt 0:00:17]} 29. Rxf5 {[%emt 0:00:01]}
Rd3 {[%emt 0:00:03]} 30. Rf6 {[%emt 0:00:01]} Kg7 {[%emt 0:00:02]} 31. Rxa6 {
[%emt 0:00:03]} Rdxc3 {[%emt 0:00:09]} 32. Rd1 {[%emt 0:00:02]} Rc1 {[%emt 0:
00:06]} 33. Rxc1 {[%emt 0:00:09]} Rxc1+ {[%emt 0:00:01]} 34. Ke2 {[%emt 0:00:
00]} Rb1 {[%emt 0:00:06]} 35. Kf3 {[%emt 0:00:16]} Rxb3+ {[%emt 0:00:02]} 36.
Kg4 {[%emt 0:00:16]} Rb4+ {[%emt 0:00:01]} 37. Kg3 {[%emt 0:00:01]} Rc4 {
[%emt 0:00:03]} 38. Rb6 {[%emt 0:00:01]} b4 {[%emt 0:00:00]} 39. Kf3 {[%emt 0:
00:03]} Rc3+ {[%emt 0:00:06]} 40. Ke4 {[%emt 0:00:05]} Rc2 {[%emt 0:00:04]} 41.
Ke3 {[%emt 0:00:03]} Rc4 {[%emt 0:00:02]} 42. h3 {[%emt 0:00:02]} Rc3+ {
[%emt 0:00:05]} 43. Kd2 {[%emt 0:00:02]} Rc4 {[%emt 0:00:02]} 44. f3 {[%emt 0:
00:02]} Rd4+ {[%emt 0:00:01]} 45. Ke3 {[%emt 0:00:01]} Rc4 {[%emt 0:00:00]} 46.
Kd3 {[%emt 0:00:02]} Rc3+ {[%emt 0:00:01]} 47. Ke4 {[%emt 0:00:01]} Rc4+ {
[%emt 0:00:05]} 48. Ke5 {[%emt 0:00:02]} Rc5+ {[%emt 0:00:01]} 49. Ke6 {
[%emt 0:00:03]} Rc4 {[%emt 0:00:02]} 50. Kd5 {[%emt 0:00:06]} Rc2 {[%emt 0:00:
01]} 51. g4 {[%emt 0:00:01]} Rc3 {[%emt 0:00:06]} 52. Ke4 {[%emt 0:00:05]} b3 {
[%emt 0:00:00]} 53. Rb7+ {[%emt 0:00:07]} Kg6 {[%emt 0:00:02]} 54. Rb6+ {
[%emt 0:00:03]} Kg7 {[%emt 0:00:01]} 55. Rb7+ {[%emt 0:00:11]} Kg6 {[%emt 0:00:
01]} 56. Rb6+ {[%emt 0:00:01]} Kg7 {[%emt 0:00:01]} 57. Rb7+ {[%emt 0:00:02]}
Kg6 {[%emt 0:00:04]} 58. Rb6+ {[%emt 0:00:04]} 1/2-1/2